{"text_format":"1","workbook":"xlsx","n_sheets":1,"sheets":["Pressupost Projecte Ac"],"not_rendered":{"charts":0,"images":2,"macros":1,"external_links":0,"defined_names":1,"comments":1,"pivot_tables":0},"unopened":[],"bounds":{"document_bytes":16777216,"sheet_cells":100000,"rows_first":2000,"rows_last":500,"rows_between":2000,"halvings":0,"cell_chars":16384,"cell_head_chars":4096},"cells_cut":0,"cells_raw":0,"read":"whole","date_system":"1900"}

{"sheet":"Pressupost Projecte Ac","index":0,"n_rows":145,"n_cols":6,"rows_kept":145,"cut":false,"hidden":false,"merged":[[2,2,3,5],[148,2,148,3],[139,2,139,3],[61,0,61,3]]}
[null,null,null,null,null,"Document bàsic 3"]
[null,null,null,null,null,"Àmbit temàtic \"A\": Creació i Consolidació"]
["Programa de subvencions de l'Ajuntament de Barcelona per a",null,"Modalitat \"c\": Formació: Innovació i formació per a la millora de la gestió i l’obertura de noves línies de negoci"]
["l'enfortimen i reactivació de l'Economia Social i Solidària i el"]
["desenvolupament de projectes que executen l'Estratègia ESS 2030 BCN",null,null,null,null,"Atenció: Cal omplir les cel·les en blanc i si escau afegir les files necessàries"]
[null,null,null,null,null,"Abans d'omplir, consultar anotacions a peu de pàgina"]
[]
["DADES BÀSIQUES"]
["Nom de la persona jurídica",null,null,null,null,"  "]
["NIF de la persona jurídica"]
["Nom del projecte subvencionable"]
["Import total del projecte subvencionable"]
["Import imputable a la subvenció municipal"]
["Import de l'aportació / Cofinançament de l'organització",{"$f":"B12-B13","v":0}]
["% de l'import sol·licitat respecte el total del projecte subvencionable",{"$f":"B13/B12","v":{"$error":"#DIV/0!"}}]
["Data inici del projecte subvencionat (dd/mm/aaaa)"]
["Data fi del projecte subvencionat (dd/mm/aaaa)"]
[]
["PREVISIÓ DE DESPESES DEL PROJECTE SUBVENCIONABLE"]
["c1. Formació grupal per a persones sòcies, treballadores i voluntàries de l’empresa/organització,  d’un mínim de 10 persones i de 10 hores"]
[]
["PARTIDES","Import imputable a la subvenció municipal","Import de l'aportació / Cofinançament de l'organització","Import total del projecte"]
["1.  Honoraris dels formadors/es externs. ",{"$f":"SUM(B24:B26)","v":0},{"$f":"SUM(C24:C26)","v":0},{"$f":"SUM(DespesesProjecteAb1[[#This Row],[Import imputable a la subvenció municipal]],DespesesProjecteAb1[[#This Row],[Import de l''aportació / Cofinançament de l''organització]])","v":0}]
[null,null,null,{"$f":"SUM(DespesesProjecteAb1[[#This Row],[Import imputable a la subvenció municipal]],DespesesProjecteAb1[[#This Row],[Import de l''aportació / Cofinançament de l''organització]])","v":0}]
[null,null,null,{"$f":"SUM(DespesesProjecteAb1[[#This Row],[Import imputable a la subvenció municipal]],DespesesProjecteAb1[[#This Row],[Import de l''aportació / Cofinançament de l''organització]])","v":0}]
[null,null,null,{"$f":"SUM(DespesesProjecteAb1[[#This Row],[Import imputable a la subvenció municipal]],DespesesProjecteAb1[[#This Row],[Import de l''aportació / Cofinançament de l''organització]])","v":0}]
["2.  Cost salarial de les persones participants (Max 30%) ",{"$f":"SUM(B28:B32)","v":0},{"$f":"SUM(C28:C30)","v":0},{"$f":"SUM(DespesesProjecteAb1[[#This Row],[Import imputable a la subvenció municipal]],DespesesProjecteAb1[[#This Row],[Import de l''aportació / Cofinançament de l''organització]])","v":0}]
[null,null,null,{"$f":"SUM(DespesesProjecteAb1[[#This Row],[Import imputable a la subvenció municipal]],DespesesProjecteAb1[[#This Row],[Import de l''aportació / Cofinançament de l''organització]])","v":0}]
[null,null,null,{"$f":"SUM(DespesesProjecteAb1[[#This Row],[Import imputable a la subvenció municipal]],DespesesProjecteAb1[[#This Row],[Import de l''aportació / Cofinançament de l''organització]])","v":0}]
[null,null,null,{"$f":"SUM(DespesesProjecteAb1[[#This Row],[Import imputable a la subvenció municipal]],DespesesProjecteAb1[[#This Row],[Import de l''aportació / Cofinançament de l''organització]])","v":0}]
["3.  Lloguer de béns immobles directament vinculats al projecte subvencionable.",{"$f":"SUM(B32:B34)","v":0},{"$f":"SUM(C32:C34)","v":0},{"$f":"SUM(DespesesProjecteAb1[[#This Row],[Import imputable a la subvenció municipal]],DespesesProjecteAb1[[#This Row],[Import de l''aportació / Cofinançament de l''organització]])","v":0}]
[null,null,null,{"$f":"SUM(DespesesProjecteAb1[[#This Row],[Import imputable a la subvenció municipal]],DespesesProjecteAb1[[#This Row],[Import de l''aportació / Cofinançament de l''organització]])","v":0}]
[null,null,null,{"$f":"SUM(DespesesProjecteAb1[[#This Row],[Import imputable a la subvenció municipal]],DespesesProjecteAb1[[#This Row],[Import de l''aportació / Cofinançament de l''organització]])","v":0}]
[null,null,null,{"$f":"SUM(DespesesProjecteAb1[[#This Row],[Import imputable a la subvenció municipal]],DespesesProjecteAb1[[#This Row],[Import de l''aportació / Cofinançament de l''organització]])","v":0}]
["4.  Adquisició de materials i béns consumibles íntegrament imputables al projecte subvencionable.",{"$f":"SUM(B36:B38)","v":0},{"$f":"SUM(C36:C38)","v":0},{"$f":"SUM(DespesesProjecteAb1[[#This Row],[Import imputable a la subvenció municipal]],DespesesProjecteAb1[[#This Row],[Import de l''aportació / Cofinançament de l''organització]])","v":0}]
[null,null,null,{"$f":"SUM(DespesesProjecteAb1[[#This Row],[Import imputable a la subvenció municipal]],DespesesProjecteAb1[[#This Row],[Import de l''aportació / Cofinançament de l''organització]])","v":0}]
[null,null,null,{"$f":"SUM(DespesesProjecteAb1[[#This Row],[Import imputable a la subvenció municipal]],DespesesProjecteAb1[[#This Row],[Import de l''aportació / Cofinançament de l''organització]])","v":0}]
[null,null,null,{"$f":"SUM(DespesesProjecteAb1[[#This Row],[Import imputable a la subvenció municipal]],DespesesProjecteAb1[[#This Row],[Import de l''aportació / Cofinançament de l''organització]])","v":0}]
["5.  Transport – missatgeria imputables al projecte.",{"$f":"SUM(B40:B42)","v":0},{"$f":"SUM(C40:C42)","v":0},{"$f":"SUM(DespesesProjecteAb1[[#This Row],[Import imputable a la subvenció municipal]],DespesesProjecteAb1[[#This Row],[Import de l''aportació / Cofinançament de l''organització]])","v":0}]
[null,null,null,{"$f":"SUM(DespesesProjecteAb1[[#This Row],[Import imputable a la subvenció municipal]],DespesesProjecteAb1[[#This Row],[Import de l''aportació / Cofinançament de l''organització]])","v":0}]
[null,null,null,{"$f":"SUM(DespesesProjecteAb1[[#This Row],[Import imputable a la subvenció municipal]],DespesesProjecteAb1[[#This Row],[Import de l''aportació / Cofinançament de l''organització]])","v":0}]
[null,null,null,{"$f":"SUM(DespesesProjecteAb1[[#This Row],[Import imputable a la subvenció municipal]],DespesesProjecteAb1[[#This Row],[Import de l''aportació / Cofinançament de l''organització]])","v":0}]
["6.  Assegurances",{"$f":"SUM(B44:B46)","v":0},{"$f":"SUM(C44:C46)","v":0},{"$f":"SUM(DespesesProjecteAb1[[#This Row],[Import imputable a la subvenció municipal]],DespesesProjecteAb1[[#This Row],[Import de l''aportació / Cofinançament de l''organització]])","v":0}]
[null,null,null,{"$f":"SUM(DespesesProjecteAb1[[#This Row],[Import imputable a la subvenció municipal]],DespesesProjecteAb1[[#This Row],[Import de l''aportació / Cofinançament de l''organització]])","v":0}]
[null,null,null,{"$f":"SUM(DespesesProjecteAb1[[#This Row],[Import imputable a la subvenció municipal]],DespesesProjecteAb1[[#This Row],[Import de l''aportació / Cofinançament de l''organització]])","v":0}]
[null,null,null,{"$f":"SUM(DespesesProjecteAb1[[#This Row],[Import imputable a la subvenció municipal]],DespesesProjecteAb1[[#This Row],[Import de l''aportació / Cofinançament de l''organització]])","v":0}]
["7.  Viatges i desplaçaments imputables a les activitats del projecte subvencionable. (Màx. 10% de l'import de la subvenció)",{"$f":"SUM(B48:B50)","v":0},{"$f":"SUM(C48:C50)","v":0},{"$f":"SUM(DespesesProjecteAb1[[#This Row],[Import imputable a la subvenció municipal]],DespesesProjecteAb1[[#This Row],[Import de l''aportació / Cofinançament de l''organització]])","v":0}]
[null,null,null,{"$f":"SUM(DespesesProjecteAb1[[#This Row],[Import imputable a la subvenció municipal]],DespesesProjecteAb1[[#This Row],[Import de l''aportació / Cofinançament de l''organització]])","v":0}]
[null,null,null,{"$f":"SUM(DespesesProjecteAb1[[#This Row],[Import imputable a la subvenció municipal]],DespesesProjecteAb1[[#This Row],[Import de l''aportació / Cofinançament de l''organització]])","v":0}]
[null,null,null,{"$f":"SUM(DespesesProjecteAb1[[#This Row],[Import imputable a la subvenció municipal]],DespesesProjecteAb1[[#This Row],[Import de l''aportació / Cofinançament de l''organització]])","v":0}]
["TOTAL DE DESPESES PREVISTES",{"$f":"B35+B31+B27+B23+B39+B43+B47","v":0},{"$f":"C35+C31+C27+C23+C39+C43+C47","v":0},0]
[]
["1.  La quantia de la subvenció atorgada no superarà el 80% de la despesa total del projecte a subvencionar. "]
["2.  Les sol•licituds poden contenir una proposta de projecte de formació que contingui les tres submodalitats (Ac1, Ac2 i Ac3), dues d’elles o bé tant sols una submodalitat. "]
["3.  En qualsevol cas, l’import màxim de subvenció, tant si la sol•licitud conté una, dos o tres submodalitats, serà de 4.500 €. "]
["4.  Les despeses de viatges i desplaçament imputables a les activitats del projecte subvencionable es limiten a un màxim d'un 10% de l'import de la subvenció."]
["5.  En el cas que la sol·licitud presentada sobrepassi l’import màxim, es considerarà com a import sol·licitat el màxim de l'establert a la convocatòria."]
["6.  No són imputables en aquesta submodalitat cap despesa indirecta de les detallades en l’apartat 13.3 de les bases reguladores."]
[]
[]
["PREVISIÓ DE DESPESES DEL PROJECTE SUBVENCIONABLE"]
["c2. Despeses de matriculació del personal de l’entitat en accions formatives externes o bé despeses salarials del personal \nde l’empresa/organització en la participació en accions formatives públiques o comunitàries sense cost de matriculació. "]
[]
["PARTIDES","Import imputable a la subvenció municipal","Import de l'aportació / Cofinançament de l'organització","Import total del projecte"]
["1. Despeses de matriculació en accions formatives externes",{"$f":"SUM(B66:B70)","v":0},{"$f":"SUM(C66:C70)","v":0},{"$f":"SUM(DespesesProjecteAb2[[#This Row],[Import imputable a la subvenció municipal]],DespesesProjecteAb2[[#This Row],[Import de l''aportació / Cofinançament de l''organització]])","v":0}]
[null,null,null,{"$f":"SUM(DespesesProjecteAb2[[#This Row],[Import imputable a la subvenció municipal]],DespesesProjecteAb2[[#This Row],[Import de l''aportació / Cofinançament de l''organització]])","v":0}]
[null,null,null,{"$f":"SUM(DespesesProjecteAb2[[#This Row],[Import imputable a la subvenció municipal]],DespesesProjecteAb2[[#This Row],[Import de l''aportació / Cofinançament de l''organització]])","v":0}]
[null,null,null,{"$f":"SUM(DespesesProjecteAb2[[#This Row],[Import imputable a la subvenció municipal]],DespesesProjecteAb2[[#This Row],[Import de l''aportació / Cofinançament de l''organització]])","v":0}]
[null,null,null,{"$f":"SUM(DespesesProjecteAb2[[#This Row],[Import imputable a la subvenció municipal]],DespesesProjecteAb2[[#This Row],[Import de l''aportació / Cofinançament de l''organització]])","v":0}]
[null,null,null,{"$f":"SUM(DespesesProjecteAb2[[#This Row],[Import imputable a la subvenció municipal]],DespesesProjecteAb2[[#This Row],[Import de l''aportació / Cofinançament de l''organització]])","v":0}]
["2.  Cost salarial de les persones participants (Max 30%) ",{"$f":"SUM(B72:B76)","v":0},{"$f":"SUM(C72:C76)","v":0},{"$f":"SUM(DespesesProjecteAb2[[#This Row],[Import imputable a la subvenció municipal]],DespesesProjecteAb2[[#This Row],[Import de l''aportació / Cofinançament de l''organització]])","v":0}]
[null,null,null,{"$f":"SUM(DespesesProjecteAb2[[#This Row],[Import imputable a la subvenció municipal]],DespesesProjecteAb2[[#This Row],[Import de l''aportació / Cofinançament de l''organització]])","v":0}]
[null,null,null,{"$f":"SUM(DespesesProjecteAb2[[#This Row],[Import imputable a la subvenció municipal]],DespesesProjecteAb2[[#This Row],[Import de l''aportació / Cofinançament de l''organització]])","v":0}]
[null,null,null,{"$f":"SUM(DespesesProjecteAb2[[#This Row],[Import imputable a la subvenció municipal]],DespesesProjecteAb2[[#This Row],[Import de l''aportació / Cofinançament de l''organització]])","v":0}]
[null,null,null,{"$f":"SUM(DespesesProjecteAb2[[#This Row],[Import imputable a la subvenció municipal]],DespesesProjecteAb2[[#This Row],[Import de l''aportació / Cofinançament de l''organització]])","v":0}]
[null,null,null,{"$f":"SUM(DespesesProjecteAb2[[#This Row],[Import imputable a la subvenció municipal]],DespesesProjecteAb2[[#This Row],[Import de l''aportació / Cofinançament de l''organització]])","v":0}]
["TOTAL DE DESPESES PREVISTES",{"$f":"B71+B65","v":0},{"$f":"C71+C65","v":0},0]
[]
["1.  La quantia de la subvenció atorgada no superarà el 80% de la despesa total del projecte a subvencionar. "]
["2.  Les sol•licituds poden contenir una proposta de projecte de formació que contingui les tres submodalitats (Ac1, Ac2 i Ac3), dues d’elles o bé tant sols una submodalitat. "]
["3.  En qualsevol cas, l’import màxim de subvenció, tant si la sol•licitud conté una, dos o tres submodalitats, serà de 4.500 €. "]
["4.  En el cas que la sol·licitud presentada sobrepassi l’import màxim, es considerarà com a import sol·licitat el màxim de l'establert a la convocatòria."]
["5.  No són imputables en aquesta submodalitat cap despesa indirecta de les detallades en l’apartat 13.3 de les bases reguladores."]
["6.  La formació a subvencionar ha de tenir una durada mínima de 150 hores i/o un cost mínim de 300 € per a cada participant."]
[]
[]
["PREVISIÓ DE DESPESES DEL PROJECTE SUBVENCIONABLE"]
["c3. Pràctiques de les persones estudiants universitàries i de formació dual de FP en entitats i empreses de l’ESS"]
[]
["PARTIDES","Import imputable a la subvenció municipal","Import de l'aportació / Cofinançament de l'organització","Import total del projecte"]
["1.  Despeses d’ajut econòmic –beca- de l’estudiant en pràctiques",{"$f":"SUM(B92:B96)","v":0},{"$f":"SUM(C92:C96)","v":0},{"$f":"SUM(DespesesProjecteAb14[[#This Row],[Import imputable a la subvenció municipal]],DespesesProjecteAb14[[#This Row],[Import de l''aportació / Cofinançament de l''organització]])","v":0}]
[null,null,null,{"$f":"SUM(DespesesProjecteAb14[[#This Row],[Import imputable a la subvenció municipal]],DespesesProjecteAb14[[#This Row],[Import de l''aportació / Cofinançament de l''organització]])","v":0}]
[null,null,null,{"$f":"SUM(DespesesProjecteAb14[[#This Row],[Import imputable a la subvenció municipal]],DespesesProjecteAb14[[#This Row],[Import de l''aportació / Cofinançament de l''organització]])","v":0}]
[null,null,null,{"$f":"SUM(DespesesProjecteAb14[[#This Row],[Import imputable a la subvenció municipal]],DespesesProjecteAb14[[#This Row],[Import de l''aportació / Cofinançament de l''organització]])","v":0}]
[null,null,null,{"$f":"SUM(DespesesProjecteAb14[[#This Row],[Import imputable a la subvenció municipal]],DespesesProjecteAb14[[#This Row],[Import de l''aportació / Cofinançament de l''organització]])","v":0}]
[null,null,null,{"$f":"SUM(DespesesProjecteAb14[[#This Row],[Import imputable a la subvenció municipal]],DespesesProjecteAb14[[#This Row],[Import de l''aportació / Cofinançament de l''organització]])","v":0}]
["2.  Despeses de seguretat social de l’alumne en pràctiques",{"$f":"SUM(B98:B102)","v":0},{"$f":"SUM(C98:C102)","v":0},{"$f":"SUM(DespesesProjecteAb14[[#This Row],[Import imputable a la subvenció municipal]],DespesesProjecteAb14[[#This Row],[Import de l''aportació / Cofinançament de l''organització]])","v":0}]
[null,null,null,{"$f":"SUM(DespesesProjecteAb14[[#This Row],[Import imputable a la subvenció municipal]],DespesesProjecteAb14[[#This Row],[Import de l''aportació / Cofinançament de l''organització]])","v":0}]
[null,null,null,{"$f":"SUM(DespesesProjecteAb14[[#This Row],[Import imputable a la subvenció municipal]],DespesesProjecteAb14[[#This Row],[Import de l''aportació / Cofinançament de l''organització]])","v":0}]
[null,null,null,{"$f":"SUM(DespesesProjecteAb14[[#This Row],[Import imputable a la subvenció municipal]],DespesesProjecteAb14[[#This Row],[Import de l''aportació / Cofinançament de l''organització]])","v":0}]
[null,null,null,{"$f":"SUM(DespesesProjecteAb14[[#This Row],[Import imputable a la subvenció municipal]],DespesesProjecteAb14[[#This Row],[Import de l''aportació / Cofinançament de l''organització]])","v":0}]
[null,null,null,{"$f":"SUM(DespesesProjecteAb14[[#This Row],[Import imputable a la subvenció municipal]],DespesesProjecteAb14[[#This Row],[Import de l''aportació / Cofinançament de l''organització]])","v":0}]
["3.  Despeses del contracte laboral de la formació dual, modalitat contracte de formació i aprenentatge",{"$f":"SUM(B104:B108)","v":0},{"$f":"SUM(C104:C108)","v":0},{"$f":"SUM(DespesesProjecteAb14[[#This Row],[Import imputable a la subvenció municipal]],DespesesProjecteAb14[[#This Row],[Import de l''aportació / Cofinançament de l''organització]])","v":0}]
[null,null,null,{"$f":"SUM(DespesesProjecteAb14[[#This Row],[Import imputable a la subvenció municipal]],DespesesProjecteAb14[[#This Row],[Import de l''aportació / Cofinançament de l''organització]])","v":0}]
[null,null,null,{"$f":"SUM(DespesesProjecteAb14[[#This Row],[Import imputable a la subvenció municipal]],DespesesProjecteAb14[[#This Row],[Import de l''aportació / Cofinançament de l''organització]])","v":0}]
[null,null,null,{"$f":"SUM(DespesesProjecteAb14[[#This Row],[Import imputable a la subvenció municipal]],DespesesProjecteAb14[[#This Row],[Import de l''aportació / Cofinançament de l''organització]])","v":0}]
[null,null,null,{"$f":"SUM(DespesesProjecteAb14[[#This Row],[Import imputable a la subvenció municipal]],DespesesProjecteAb14[[#This Row],[Import de l''aportació / Cofinançament de l''organització]])","v":0}]
[null,null,null,{"$f":"SUM(DespesesProjecteAb14[[#This Row],[Import imputable a la subvenció municipal]],DespesesProjecteAb14[[#This Row],[Import de l''aportació / Cofinançament de l''organització]])","v":0}]
["4.  Despeses de gestió associades a la tramitació del Conveni de Cooperació Educativa o l’Acord Formatiu de Col·laboració",{"$f":"SUM(B110:B112)","v":0},{"$f":"SUM(C110:C112)","v":0},{"$f":"SUM(DespesesProjecteAb14[[#This Row],[Import imputable a la subvenció municipal]],DespesesProjecteAb14[[#This Row],[Import de l''aportació / Cofinançament de l''organització]])","v":0}]
[null,null,null,{"$f":"SUM(DespesesProjecteAb14[[#This Row],[Import imputable a la subvenció municipal]],DespesesProjecteAb14[[#This Row],[Import de l''aportació / Cofinançament de l''organització]])","v":0}]
[null,null,null,{"$f":"SUM(DespesesProjecteAb14[[#This Row],[Import imputable a la subvenció municipal]],DespesesProjecteAb14[[#This Row],[Import de l''aportació / Cofinançament de l''organització]])","v":0}]
[null,null,null,{"$f":"SUM(DespesesProjecteAb14[[#This Row],[Import imputable a la subvenció municipal]],DespesesProjecteAb14[[#This Row],[Import de l''aportació / Cofinançament de l''organització]])","v":0}]
[null,null,null,{"$f":"SUM(DespesesProjecteAb14[[#This Row],[Import imputable a la subvenció municipal]],DespesesProjecteAb14[[#This Row],[Import de l''aportació / Cofinançament de l''organització]])","v":0}]
[null,null,null,{"$f":"SUM(DespesesProjecteAb14[[#This Row],[Import imputable a la subvenció municipal]],DespesesProjecteAb14[[#This Row],[Import de l''aportació / Cofinançament de l''organització]])","v":0}]
["TOTAL DE DESPESES PREVISTES",{"$f":"B109+B103+B97+B91","v":0},{"$f":"C109+C103+C97+C91","v":0},{"$f":"D109+D103+D97+D91","v":0}]
[]
[]
["1.  La quantia de la subvenció atorgada no superarà el 80% de la despesa total del projecte a subvencionar. "]
["2.  Les sol•licituds poden contenir una proposta de projecte de formació que contingui les tres submodalitats (Ac1, Ac2 i Ac3), dues d’elles o bé tant sols una submodalitat. "]
["3.  En qualsevol cas, l’import màxim de subvenció, tant si la sol•licitud conté una, dos o tres submodalitats, serà de 4.500 €. "]
["4.  En el cas que la sol·licitud presentada sobrepassi l’import màxim, es considerarà com a import sol·licitat el màxim de l'establert a la convocatòria."]
["5.  No són imputables en aquesta submodalitat cap despesa indirecta de les detallades en l’apartat 13.3 de les bases reguladores."]
["6.  Els/les alumnes beneficiaris/àries han de ser persones residents a la ciutat o matriculats/des en un universitats o centres de formació de la ciutat"]
["7.  El programa de pràctiques dels alumnes ha de ser d’una durada mínima de 400 hores. "]
["8.  Només pot presentar-se una sol·licitud per un lloc de pràctiques per entitat sol·licitant. "]
["9.  Caldrà donar d’alta a l’alumne/a en la seguretat social com a alumne/a en pràctiques "]
["10.  El cost brut hora de la remuneració de l’alumne/a en pràctiques universitàries no podrá ser inferior a de 6€/hora "]
[]
[]
["PREVISIÓ DE DESPESES DEL PROJECTE SUBVENCIONABLE (c1 + c2 + c3) "]
[]
[]
["PARTIDES","Import imputable a la subvenció municipal","Import de l'aportació / Cofinançament de l'organització","Import total del projecte"]
["TOTAL DE DESPESES PREVISTES",{"$f":"SUM(B51,B77,B115)","v":0},{"$f":"SUM(C51,C77,C115)","v":0},{"$f":"SUM(D51,D77,D115)","v":0}]
[]
["Barcelona, "]
[]
["Segell de l'organització",null,"Signatura del representat legal de l'organització"]
[]
["Atenció: En cas de persones jurídiques no signeu aquest document ara.\nMés endavant signareu digitalment aquest document",null,"Atenció: En cas de registre físic per les persones físiques\nAfegiu la data i la signatura de la persona representant legal de l’organització aquí per tal que aquest document tingui validesa legal"]
[]
["1.  La quantia de la subvenció atorgada no superarà el 80% de la despesa total del projecte a subvencionar. "]
["2.  Les sol•licituds poden contenir una proposta de projecte de formació que contingui les tres submodalitats (Ac1, Ac2 i Ac3), dues d’elles o bé tant sols una submodalitat."]
["3.  En qualsevol cas, l’import màxim de subvenció, tant si la sol•licitud conté una, dos o tres submodalitats, serà de 4.500 €."]
["4. En el cas que la sol·licitud presentada sobrepassi l’import màxim, es considerarà com a import sol·licitat el màxim de l'establert a la convocatòria."]